bitfinex-derivatives/quotes_ETHF0:USTF0_20250828
["timestamp","ask_amount","ask_price","bid_price","bid_amount"]
[1756340153369,20.545,4521.6,4521.5,2.7523]
[1756340153580,21.2451,4521.6,4521.5,2.7523]
[1756340153875,20.545,4521.6,4521.5,2.7523]
[1756340154077,1.7144,4521.9,4521.8,2.1429]
[1756340154374,3.2078,4523.3,4522.7,2.7523]
[1756340154576,1.8627,4523.0,4522.9,2.1398]
[1756340154873,1.9554,4522.9,4522.8,3.2078]
[1756340155075,4.8484,4522.9,4522.3,3.2078]
[1756340155282,4.905,4523.0,4522.3,3.2078]
[1756340155283,1.8627,4522.4,4522.3,3.8203]
[1756340155479,14.1787,4522.4,4522.3,3.8203]
[1756340156580,1.8627,4522.0,4521.9,0.6125]
[1756340156772,1.8627,4522.0,4521.9,1.0167]
[1756340157168,1.8627,4522.0,4521.9,0.6125]
[1756340157972,1.9554,4521.9,4521.8,3.2078]
[1756340158173,22.4914,4521.9,4521.8,3.2078]
[1756340158477,22.4914,4521.9,4521.8,3.8203]
[1756340158670,22.4914,4521.9,4521.8,3.2078]
[1756340158871,22.3977,4521.9,4521.8,3.8203]
[1756340159178,22.4904,4521.9,4521.8,3.2078]
[1756340159376,0.8484,4521.5,4521.4,0.6125]
[1756340159580,1.9554,4521.5,4521.4,0.6125]
[1756340159776,1.8627,4521.5,4521.4,1.0167]
[1756340160077,1.8627,4521.5,4521.4,2.7523]
[1756340160780,1.8627,4521.5,4521.4,1.7072]
[1756340160970,0.7001,4521.5,4521.4,2.7523]
[1756340161776,0.4315,4521.8,4521.5,1.6162]
[1756340161981,4.9192,4522.2,4522.1,1.531]
[1756340162281,5.032,4522.2,4522.1,2.7246]
[1756340162577,1.1136,4522.2,4522.1,2.7246]
[1756340162781,0.6821,4522.2,4522.1,2.7246]
[1756340162982,0.6821,4522.2,4522.1,3.12262]
[1756340163278,1.8242,4522.5,4522.4,2.7246]
[1756340164375,1.0293,4522.4,4521.9,0.582]
[1756340164677,0.4315,4522.3,4522.2,2.4418]
[1756340164980,20.531,4522.4,4522.3,2.7246]
[1756340165374,21.2131,4522.4,4522.3,2.7246]
[1756340165578,22.3552,4522.4,4522.3,2.7246]
[1756340166180,1.8242,4522.4,4522.3,2.7246]
[1756340167175,0.8831,4522.8,4522.7,1.1084]
[1756340167382,0.6821,4522.8,4522.7,2.7246]
[1756340167882,1.8242,4522.8,4522.7,2.7246]
[1756340168883,0.2853,4523.2,4523.1,0.39792]
[1756340169186,1.8242,4523.2,4523.1,3.12252]
[1756340169979,1.8242,4523.2,4523.1,1.01]
[1756340170685,1.8242,4523.2,4523.1,0.582]
[1756340171186,1.8242,4523.2,4523.1,1.01]
[1756340171482,1.8242,4523.2,4523.1,2.7246]
[1756340171783,1.8242,4523.6,4523.5,1.6904]
[1756340171985,1.8242,4523.6,4523.5,1.01]
[1756340172796,1.8242,4523.6,4523.5,0.582]
[1756340172797,1.8947,4523.6,4523.5,0.582]
[1756340172976,1.0293,4523.5,4523.3,0.582]
[1756340173289,1.8242,4523.4,4523.3,0.582]
[1756340173983,0.4315,4523.3,4522.8,3.7898]
[1756340174188,0.7949,4522.9,4522.8,3.7898]
[1756340174383,1.8242,4522.9,4522.8,3.7898]
[1756340175386,1.8242,4522.9,4522.8,4.2178]
[1756340175780,1.8242,4522.9,4522.8,5.9324]
[1756340176783,1.8242,4522.9,4522.2,1.0342]
[1756340176987,1.8242,4522.6,4522.5,0.582]
[1756340177185,22.3442,4522.6,4522.5,0.582]
[1756340177490,22.3442,4522.6,4522.5,2.113]
[1756340177685,22.3442,4522.6,4522.5,2.7246]
[1756340177886,22.3442,4522.6,4522.5,1.6904]
[1756340178391,22.2304,4522.6,4522.5,2.7246]
[1756340178689,20.8043,4522.6,4522.5,2.7246]
[1756340179078,0.6821,4522.7,4522.6,0.428]
[1756340179285,1.7114,4522.7,4522.6,2.7246]
[1756340180298,1.8242,4522.7,4522.6,2.7246]
[1756340180494,1.8947,4522.7,4522.6,0.582]
[1756340180790,1.8242,4522.7,4522.6,1.6904]
[1756340181689,1.8242,4522.7,4522.6,2.7246]
[1756340181879,1.8242,4522.7,4522.6,1.6904]
[1756340182079,0.6683,4522.6,4522.3,0.582]
[1756340182290,1.8242,4522.4,4522.3,0.582]
[1756340182485,22.3422,4522.4,4522.3,1.01]
[1756340182990,1.8242,4521.7,4521.6,4.2178]
[1756340183292,22.3422,4521.7,4521.6,1.01]
[1756340184090,22.3422,4521.7,4521.6,0.582]
[1756340184492,22.3422,4521.7,4521.6,1.01]
[1756340184693,22.3422,4521.7,4521.6,1.6904]
[1756340185296,22.3422,4521.7,4521.6,2.302]
[1756340185497,22.3422,4521.7,4521.6,2.7246]
[1756340185696,22.3422,4521.7,4521.6,1.6904]
[1756340186694,22.3422,4521.7,4521.6,2.7246]
[1756340186896,21.1991,4521.7,4521.6,2.7246]
[1756340187196,22.2284,4521.7,4521.6,2.7246]
[1756340187397,22.3412,4521.7,4521.6,2.7246]
[1756340187893,22.4117,4521.7,4521.6,0.582]
[1756340188199,0.7949,4521.2,4521.1,3.2078]
[1756340188499,22.3412,4521.2,4521.1,3.7898]
[1756340188899,22.4117,4521.2,4521.1,3.7898]
[1756340189589,22.4117,4521.2,4521.1,3.2078]
[1756340189786,1.0293,4520.5,4520.4,3.2078]
[1756340190101,1.8242,4520.0,4519.9,3.6358]
[1756340190296,22.3412,4520.0,4519.9,3.6358]
[1756340190495,22.3412,4520.0,4519.9,4.2178]
[1756340191006,1.8242,4519.5,4519.4,3.7898]
[1756340191200,22.3412,4519.5,4519.4,4.8982]
[1756340191496,1.7114,4519.5,4519.4,5.9324]
[1756340191701,20.517,4519.5,4519.4,5.9324]
[1756340192795,21.1731,4519.5,4519.4,5.9324]
[1756340192995,22.1584,4519.5,4519.4,5.9324]
[1756340193392,22.2362,4519.5,4519.4,5.9324]
[1756340193698,1.1391,4519.1,4519.0,0.5843]
[1756340193902,22.2372,4519.1,4519.0,0.5843]
[1756340194403,22.2372,4519.1,4519.0,1.6786]
[1756340194696,0.9853,4520.3,4519.5,1.5887]
[1756340194900,1.7192,4520.3,4520.2,0.9934]
[1756340195101,1.7192,4520.3,4520.2,0.5843]
[1756340195501,1.7192,4520.3,4520.2,0.9934]
[1756340196892,1.7192,4520.3,4520.2,0.5843]
[1756340198409,1.7192,4520.3,4520.2,0.9934]
[1756340198607,1.7192,4519.7,4519.6,1.6786]
[1756340198808,1.7192,4519.7,4519.6,0.9934]
[1756340199003,1.7192,4519.7,4519.6,2.1139]
[1756340199205,1.7192,4519.7,4519.6,2.683]
[1756340199401,7.4376,4520.4,4520.0,2.1139]
[1756340199402,1.7192,4520.1,4520.0,2.1139]
[1756340199707,1.7192,4520.1,4520.0,2.683]
[1756340200296,1.7192,4520.1,4520.0,0.9934]
[1756340200505,1.7192,4520.1,4520.0,0.5843]
[1756340202303,0.6561,4519.2,4519.1,1.6896]
[1756340202497,1.7192,4519.2,4519.1,2.0987]
[1756340202901,1.7192,4519.2,4519.1,0.5843]
[1756340203106,0.0486,4519.5,4518.9,3.2078]
[1756340203107,0.7339,4519.0,4518.9,3.2078]
[1756340203308,1.7678,4519.0,4518.9,3.2078]
[1756340203802,0.9853,4518.4,4518.3,3.2078]
[1756340204108,1.7192,4518.4,4518.3,3.6169]
[1756340204503,1.7192,4518.4,4518.3,3.7921]
[1756340205909,1.7192,4518.4,4518.3,5.8908]
[1756340206111,1.6414,4518.4,4518.3,5.8908]
[1756340206310,0.6561,4518.4,4518.3,5.8908]
[1756340206706,1.7192,4518.4,4518.3,5.4555]
[1756340207411,1.7192,4518.4,4518.3,3.7921]
[1756340207602,1.7192,4518.4,4518.3,3.2078]
[1756340207809,1.7678,4518.4,4518.3,3.2078]
[1756340208313,1.7192,4518.4,4518.3,4.2012]
[1756340208613,1.7192,4518.4,4518.3,4.8864]
[1756340208805,1.7192,4518.4,4518.3,5.8908]
[1756340208806,0.6561,4518.4,4518.3,5.8908]
[1756340209006,1.3626,4518.4,4517.8,0.5843]
[1756340209206,13.365,4518.9,4517.8,0.5843]
[1756340209207,1.314,4517.9,4517.8,0.5843]
[1756340209608,1.314,4517.9,4517.8,0.9934]
[1756340209813,1.7192,4517.9,4517.8,0.5843]
[1756340211007,1.7192,4517.9,4517.8,0.9934]
[1756340214724,0.6287,4517.4,4517.2,0.5843]
[1756340215021,1.7192,4517.3,4517.2,2.683]
[1756340215618,0.5801,4517.7,4517.3,0.5843]
[1756340215823,1.7192,4517.7,4517.6,2.683]
[1756340216225,1.7192,4517.7,4517.6,0.5843]
[1756340216722,1.7678,4517.7,4517.6,0.5843]
[1756340217124,1.7192,4517.7,4517.6,0.9934]
[1756340220726,1.7192,4517.7,4517.6,2.683]
[1756340220927,1.7192,4517.7,4517.6,1.6786]
[1756340221120,1.7192,4517.7,4517.6,2.683]
[1756340221828,1.7192,4517.7,4517.6,1.6786]
[1756340222215,1.7192,4517.7,4517.6,0.9934]
[1756340222423,1.7464,4517.7,4517.6,0.5843]
[1756340222729,1.6933,4516.7,4516.6,5.2585]
[1756340223130,1.6933,4516.7,4516.6,5.8188]
[1756340224127,1.6933,4516.7,4516.6,5.4111]
[1756340224331,1.6933,4516.7,4516.6,5.8188]
[1756340225442,1.6498,4516.7,4516.6,5.8188]
[1756340225742,1.6933,4516.7,4516.6,5.8188]
[1756340226140,1.6498,4516.7,4516.6,5.8188]
[1756340226344,0.6621,4516.7,4516.6,5.8188]
[1756340226841,1.6498,4517.0,4516.9,2.611]
[1756340227237,1.6933,4517.0,4516.9,2.611]
[1756340228137,1.6498,4517.0,4516.9,2.611]
[1756340228541,1.6933,4517.8,4517.7,2.611]
[1756340228941,1.7205,4517.3,4516.8,0.5603]
[1756340229139,0.3934,4517.2,4516.5,1.5414]
[1756340229446,0.3934,4517.0,4516.8,1.0696]
[1756340229645,0.6621,4517.0,4516.9,2.611]
[1756340229942,0.5943,4517.2,4516.9,2.611]
[1756340230147,1.6498,4517.7,4517.6,2.2033]
[1756340230342,1.6498,4517.7,4517.6,2.611]
[1756340231549,31.88,4518.1,4518.0,0.2767]
[1756340231739,3.2078,4518.2,4518.1,1.1337]
[1756340231939,9.602,4518.9,4518.8,1.0696]
[1756340232146,10.2641,4518.9,4518.8,2.611]
[1756340232743,9.602,4518.9,4518.8,2.611]
[1756340233046,9.602,4518.9,4518.8,6.611]
[1756340233241,3.2078,4519.4,4519.3,2.611]
[1756340233444,4.39857006,4519.4,4519.3,2.611]
[1756340233644,5.38627006,4519.4,4519.3,2.611]
[1756340234240,20.523,4519.6,4519.4,1.5414]
[1756340234447,20.523,4519.6,4519.5,2.611]
[1756340235246,22.1728,4519.6,4519.5,2.611]
[1756340235441,0.0272,4519.4,4518.5,0.9811]
[1756340235645,1.0555,4518.6,4518.5,2.611]
[1756340235843,1.099,4519.3,4519.2,0.3939]
[1756340236152,1.6933,4519.3,4519.2,0.9542]
[1756340236350,1.6933,4519.3,4519.2,0.5603]
[1756340236843,24.7833,4519.3,4519.2,2.611]
[1756340237040,25.4211,4519.3,4519.2,0.5603]
[1756340237242,25.4483,4519.3,4519.2,0.5603]
[1756340238045,0.5943,4518.9,4518.4,0.5603]
[1756340238348,0.7328,4518.5,4517.8,0.9811]
[1756340238545,31.885,4519.8,4517.3,0.5603]
[1756340238546,0.7056,4517.4,4517.3,0.5603]
[1756340238744,8.1513,4517.4,4517.3,0.9542]
[1756340239143,8.1513,4517.4,4517.3,0.5603]
[1756340240245,1.6933,4516.9,4516.8,0.5603]
[1756340241249,1.6498,4516.9,4516.8,2.611]
[1756340241446,1.6933,4516.9,4516.8,2.611]
[1756340241647,1.6933,4516.9,4516.8,2.2033]
[1756340241952,1.6933,4516.9,4516.8,0.9542]
[1756340242655,1.099,4516.3,4516.2,1.6299]
[1756340242846,1.6933,4516.3,4516.2,2.611]
[1756340244647,1.6933,4516.3,4516.2,0.5603]
[1756340246343,1.6933,4516.3,4515.4,3.2078]
[1756340246652,0.7328,4515.7,4515.0,0.5603]
[1756340246854,0.5943,4515.4,4515.0,2.611]
[1756340247053,0.5943,4515.4,4515.3,2.611]
[1756340247357,1.6933,4515.4,4515.3,2.611]
[1756340247558,1.6933,4515.4,4515.3,1.6299]
[1756340247760,1.6933,4515.4,4515.3,0.5603]
[1756340247948,1.7205,4515.4,4515.3,0.5603]
[1756340248456,1.6498,4515.4,4515.3,2.611]
[1756340248856,1.6933,4515.4,4515.3,2.611]
[1756340249256,1.6933,4515.4,4515.0,0.5603]
[1756340249257,0.7056,4515.4,4515.0,0.5603]
[1756340249457,1.6933,4515.1,4515.0,0.5603]
[1756340249655,1.6933,4515.1,4515.0,0.9542]
[1756340250451,1.6933,4515.1,4515.0,1.6299]
[1756340250962,1.6933,4515.1,4515.0,0.5603]
[1756340251953,0.6612,4514.4,4514.3,0.9252]
[1756340252260,22.1632,4514.4,4514.3,2.5344]
[1756340253555,20.521,4514.4,4514.3,2.5344]
[1756340253857,0.425,4514.9,4514.7,2.5344]
[1756340254058,20.522,4514.8,4514.7,2.5344]
[1756340254454,21.1734,4514.8,4514.7,2.5344]
[1756340255061,22.1642,4514.8,4514.7,0.5518]
[1756340255360,22.1642,4514.8,4514.7,2.5344]
[1756340257658,22.1642,4514.8,4514.7,1.5819]
[1756340257961,22.1642,4514.8,4514.7,0.9252]
[1756340258457,22.1642,4514.8,4514.7,0.5518]
[1756340258658,22.1703,4514.8,4514.7,0.5518]
[1756340258962,22.1642,4514.8,4514.7,0.5518]
[1756340259353,22.1642,4514.8,4514.7,0.9252]
[1756340259553,22.1642,4514.8,4514.7,1.5819]
[1756340260259,22.1642,4514.8,4514.7,0.9252]
[1756340260454,0.981,4514.7,4514.2,0.5518]
[1756340260757,1.6422,4514.3,4514.2,0.5518]
[1756340260959,22.1672,4514.3,4514.2,0.5518]
[1756340261466,22.1672,4514.3,4514.2,0.9252]
[1756340261762,21.1764,4514.3,4514.2,2.5344]
[1756340262067,21.6014,4514.3,4514.2,2.5344]
[1756340262357,22.1672,4514.3,4514.2,2.5344]
[1756340262563,22.1672,4514.3,4514.2,2.1337]
[1756340262763,22.1672,4514.3,4514.2,0.9252]
[1756340263357,22.1672,4514.3,4514.2,1.5819]
[1756340263959,22.1672,4514.3,4514.2,2.5344]
[1756340264959,22.1672,4514.3,4514.2,1.5819]
[1756340265567,22.1672,4514.3,4514.2,3.59458821]
[1756340265760,22.1672,4514.3,4514.2,1.61198821]
[1756340265960,22.1672,4514.3,4514.2,0.5518]
[1756340267067,22.1672,4514.3,4514.1,0.1019018]
[1756340267263,1.6483,4514.2,4514.1,0.6537018]
[1756340268568,1.6422,4514.2,4514.1,0.6537018]
[1756340268766,1.6422,4514.2,4514.1,1.0271018]
[1756340269871,1.6422,4514.2,4514.1,0.6537018]
[1756340270262,1.6483,4514.2,4514.1,0.6537018]
[1756340272465,1.6422,4514.2,4514.1,0.6537018]
[1756340272669,1.6422,4514.2,4514.1,1.0271018]
[1756340273063,1.6422,4514.2,4514.1,0.6537018]
[1756340273262,1.6483,4514.2,4514.1,0.6537018]
[1756340273468,1.6422,4514.2,4514.1,0.6537018]
[1756340273668,1.6422,4514.2,4514.1,1.0271018]
[1756340273968,1.6422,4514.2,4514.1,2.6363018]
[1756340277468,1.6324,4514.2,4514.1,2.6363018]
[1756340277668,1.6422,4514.2,4514.1,2.6363018]
[1756340278770,1.6422,4514.2,4514.1,2.2356018]
[1756340279769,1.6422,4514.2,4514.1,0.6537018]
[1756340279967,6.39993773,4514.2,4514.1,0.1019018]
[1756340280271,22.70240773,4514.2,4514.1,0.6537018]
[1756340280667,22.69630773,4514.2,4514.1,0.6537018]
[1756340280864,26.70240773,4514.2,4514.1,0.1019018]
[1756340281063,0.0098,4513.0,4512.9,3.7596]
[1756340281271,22.1662,4513.0,4512.9,4.133]
[1756340281871,22.1662,4513.0,4512.9,0.9252]
[1756340282376,22.1662,4513.0,4511.8,0.17772]
[1756340282377,0.6445,4512.6,4512.1,0.5712]
[1756340282574,0.17772,4514.1,4510.3,2.7764066]
[1756340282575,0.395,4512.1,4511.5,0.5712]
[1756340282878,1.6298,4511.7,4511.6,1.615]
[1756340283077,22.1538,4511.7,4511.6,0.5712]
[1756340283475,1.6298,4511.7,4511.6,2.5898]
[1756340283680,31.909,4512.8,4511.6,10.0356382]
[1756340283681,10.37,4512.3,4511.6,10.0356382]
[1756340283976,1.6298,4513.1,4513.0,2.5898]
[1756340284179,22.1548,4513.1,4513.0,2.5898]
[1756340284380,22.1548,4513.1,4513.0,0.9625]
[1756340284773,22.1548,4513.1,4513.0,2.5898]
[1756340284774,21.1695,4513.1,4513.0,2.5898]
[1756340285580,22.1548,4513.1,4513.0,2.5898]
[1756340285775,0.6445,4512.6,4512.5,0.9625]
[1756340285972,22.1548,4512.6,4512.5,2.5898]
[1756340286976,20.525,4512.6,4512.5,2.5898]
[1756340287280,21.1695,4512.6,4512.5,2.5898]
[1756340288582,20.525,4512.6,4512.5,2.5898]
[1756340288880,21.1695,4512.6,4512.5,2.5898]
[1756340289086,22.1548,4512.6,4512.5,2.5898]
[1756340289279,22.1548,4512.6,4512.5,0.5712]
[1756340289678,0.3641,4512.2,4512.1,3.2078]
[1756340289879,0.6445,4511.7,4511.4,0.5483]
[1756340290184,1.6298,4511.5,4511.4,1.0438]
[1756340290485,22.1558,4511.5,4511.4,0.9625]
[1756340290676,22.1558,4511.5,4511.4,0.5712]
[1756340291088,1.6298,4511.0,4510.9,3.5991]
[1756340291382,22.1558,4511.0,4510.9,4.2516]
[1756340291578,22.1558,4511.0,4510.9,5.7976]
[1756340292176,22.1558,4511.0,4510.9,3.779]
[1756340292379,22.1558,4511.0,4510.9,5.7976]
[1756340293083,22.1558,4511.0,4510.9,5.3711]
[1756340293280,22.1568,4511.0,4510.9,5.7976]
[1756340293482,0.6445,4511.0,4510.9,5.7976]
[1756340293680,20.8074,4511.0,4510.9,5.7976]
[1756340294588,22.1568,4511.0,4510.9,5.7976]
[1756340294878,21.1715,4511.0,4510.9,5.7976]
[1756340295083,22.1568,4511.0,4510.9,5.7976]
[1756340295581,22.1568,4511.0,4510.9,4.1703]
[1756340295772,22.1568,4511.0,4510.9,3.779]
[1756340296184,22.1568,4511.0,4510.9,4.1703]
[1756340296385,22.1568,4511.0,4510.9,4.8228]
[1756340297380,22.1568,4511.0,4510.9,3.779]
[1756340297679,22.1568,4511.0,4510.9,3.2078]
[1756340297680,26.1568,4511.0,4510.9,3.2078]
[1756340297877,1.6298,4511.0,4510.9,3.2078]
[1756340298078,1.6298,4511.0,4510.9,4.1703]
[1756340298280,12.5898,4511.0,4510.9,4.8228]
[1756340299188,12.5898,4511.0,4510.9,4.1703]
[1756340299487,21.1745,4511.0,4510.9,6.1966]
[1756340299681,31.915,4512.6,4510.9,6.1966]
[1756340299682,0.3641,4512.5,4512.4,0.376]
[1756340299878,22.1598,4512.5,4512.4,2.5898]
[1756340300080,21.1745,4512.5,4512.4,2.5898]
[1756340300889,22.1598,4512.5,4512.4,1.615]
[1756340301390,22.1598,4512.5,4512.4,2.5898]
[1756340301589,20.53,4512.5,4512.4,2.5898]
[1756340303186,20.53,4512.6,4512.3,3.2078]
[1756340303490,22.1598,4512.6,4512.5,2.98866]
[1756340303786,22.1598,4512.6,4512.5,0.5712]
[1756340306189,22.1598,4512.6,4512.5,1.615]
[1756340306490,22.1598,4512.6,4512.5,0.9625]
[1756340306886,22.1598,4512.6,4512.5,0.5712]
[1756340307087,20.53,4512.6,4511.8,3.5991]
[1756340307284,1.6298,4512.0,4511.9,0.5712]
[1756340307479,22.0328,4512.0,4511.3,0.5712]
[1756340307690,1.6298,4511.4,4511.3,0.5712]
[1756340307893,22.1578,4511.4,4511.3,0.5712]
[1756340308092,1.6298,4511.3,4511.2,3.2078]
[1756340308488,0.6445,4510.8,4510.7,1.239]
[1756340308789,22.1544,4510.8,4510.7,0.5712]
[1756340309988,1.2348,4510.1,4510.0,3.2078]
[1756340310189,0.9819,4509.4,4509.3,0.5712]
[1756340310389,21.5169,4509.4,4509.3,0.5712]
[1756340311088,0.9819,4509.3,4508.8,3.09377449]
[1756340311488,0.9819,4509.3,4508.7,3.2078]
[1756340311489,0.5903,4509.3,4508.7,3.2078]
[1756340311790,0.5903,4509.3,4508.8,0.5777]
[1756340311791,0.9672,4509.3,4508.8,0.5777]
[1756340311993,0.5737,4509.2,4508.7,3.2078]
[1756340312192,0.9672,4509.0,4508.8,0.5777]
[1756340312388,20.563,4508.9,4508.8,0.5777]
[1756340312587,20.563,4508.9,4508.8,1.5397]
[1756340312788,20.563,4508.9,4508.8,0.5777]
[1756340312994,21.5302,4508.9,4508.8,0.5777]
[1756340313691,20.563,4508.9,4508.2,3.7855]
[1756340313893,0.3935,4508.5,4508.3,0.5777]
[1756340314090,21.5282,4508.4,4508.3,0.5777]
[1756340314397,21.5282,4508.4,4507.8,0.5474]
[1756340314398,21.5292,4508.4,4507.8,0.5474]
[1756340314595,0.3935,4508.3,4508.1,0.58270638]
[1756340314791,0.5737,4508.2,4508.1,0.00500638]
[1756340314985,0.9672,4508.2,4508.1,0.00500638]
[1756340315494,0.9672,4508.2,4508.1,0.58270638]
[1756340315888,0.9672,4508.2,4508.1,0.00500638]
[1756340317187,0.5737,4508.3,4507.1,0.5777]
[1756340317393,0.9622,4508.3,4507.2,0.5777]
[1756340317595,0.9622,4508.3,4507.3,0.5474]
[1756340317793,20.562,4508.4,4507.4,0.5777]
[1756340317995,0.3885,4508.2,4507.5,3.2078]
[1756340318190,20.562,4508.4,4507.6,0.5777]
[1756340318191,0.5737,4508.1,4507.6,0.5777]
[1756340318393,0.9622,4508.3,4507.6,0.5777]
[1756340318795,0.5737,4507.6,4506.5,0.4146]
[1756340318994,3.2078,4507.7,4507.3,0.5777]
[1756340319196,11.313,4507.6,4507.5,1.5397]
[1756340319397,9.158,4507.6,4507.5,1.5397]
[1756340319795,0.5737,4508.0,4507.4,1.5397]
[1756340320092,0.5737,4508.0,4507.3,3.2078]
[1756340320093,21.6508,4508.2,4507.8,0.962]
[1756340320296,0.5737,4508.1,4508.0,0.5777]
[1756340322500,21.6508,4508.2,4506.4,3.2078]
[1756340322704,6.30157449,4506.5,4505.0,0.962]
[1756340322895,3.2078,4505.4,4504.6,0.27609216]
[1756340323096,3.2078,4505.4,4504.7,1.5397]
[1756340323299,3.2078,4505.4,4504.7,0.22198]
[1756340323497,3.2078,4505.4,4504.8,0.6215]
[1756340323699,3.2078,4505.9,4505.2,3.2078]
[1756340323906,3.2078,4505.9,4505.3,1.5397]
[1756340324099,3.2078,4505.9,4505.3,1.34705]
[1756340324402,3.2078,4505.9,4505.4,0.5777]
[1756340324606,0.5737,4505.8,4505.4,0.5777]
[1756340324801,3.2078,4505.9,4505.3,1.5397]
[1756340325006,0.5737,4506.3,4505.3,1.5397]
[1756340325299,20.77,4506.2,4505.5,1.1251]
[1756340325499,31.944,4506.4,4505.9,0.5474]
[1756340325693,21.3477,4506.3,4505.4,0.5777]
[1756340325899,3.2078,4505.8,4505.4,0.5777]
[1756340326097,20.772,4505.7,4505.2,6.30157449]
[1756340326300,0.5737,4505.7,4505.5,0.4146]
[1756340326501,0.5737,4505.5,4504.9,0.5777]
[1756340326701,0.5737,4505.2,4504.6,0.05418216]
[1756340326904,0.5737,4504.7,4504.6,0.05418216]
[1756340327105,21.3977,4504.7,4504.6,0.05418216]
[1756340327895,25.61969,4504.7,4503.7,0.5777]
[1756340328102,3.7384,4504.2,4503.7,0.5777]
[1756340328410,24.5714,4504.2,4503.7,0.5777]
[1756340328602,3.73143652,4504.2,4504.1,0.67982804]
[1756340328807,3.73143652,4504.2,4504.1,1.22722804]
[1756340328808,24.56643652,4504.2,4504.1,1.22722804]
[1756340329103,3.73143652,4504.2,4504.1,0.10212804]
[1756340329306,24.57343652,4504.2,4504.1,0.67982804]
[1756340329802,3.73143652,4504.2,4504.1,0.67982804]
[1756340330008,24.56743652,4504.2,4504.1,0.67982804]
[1756340330202,24.56743652,4504.2,4504.1,1.22722804]
[1756340330409,24.56743652,4504.2,4504.1,0.67982804]
[1756340330804,3.73143652,4504.2,4504.1,0.67982804]
[1756340331109,24.03483652,4504.2,4504.1,1.64182804]
[1756340331503,24.56543652,4504.2,4504.1,1.64182804]
[1756340331704,24.56243652,4504.2,4504.1,1.64182804]
[1756340331904,24.56243652,4504.2,4504.1,0.10212804]
[1756340332407,3.73143652,4504.2,4504.1,0.67982804]
[1756340332603,24.56143652,4504.2,4504.1,0.67982804]
[1756340332808,24.56143652,4504.2,4504.1,0.10212804]
[1756340333712,24.55443652,4504.2,4504.1,0.67982804]
[1756340333901,3.20083652,4504.2,4504.1,1.64182804]
[1756340334306,20.822,4504.3,4504.2,1.5397]
[1756340335609,35.6904,4504.7,4504.2,1.5397]
[1756340335806,20.819,4504.6,4504.2,0.4146]
[1756340336009,21.3496,4504.6,4504.2,0.9923]
[1756340336209,21.3496,4504.6,4504.2,1.5397]
[1756340336411,35.1598,4504.7,4504.2,0.962]
[1756340336606,20.82,4504.6,4504.2,0.9923]
[1756340336805,20.82,4504.6,4504.3,0.5474]
[1756340337004,21.3506,4504.6,4504.5,0.5777]
[1756340337209,21.53966251,4504.6,4504.5,0.5777]
[1756340337801,0.18906251,4504.6,4504.5,0.5777]
[1756340338002,3.2078,4504.7,4504.5,5.5397]
[1756340338209,3.2078,4505.2,4504.7,0.4146]
[1756340338411,9.92026458,4505.1,4505.0,1.5397]
[1756340338607,0.18926458,4505.1,4505.0,1.5397]
[1756340339008,10.426,4505.2,4504.5,1.5397]
[1756340339214,0.1895523,4505.1,4504.4,3.60737]
[1756340339412,10.426,4505.2,4504.7,1.5397]
[1756340339714,20.132,4505.6,4504.9,1.5397]
[1756340339915,0.18957441,4505.5,4504.9,1.5397]
[1756340340108,0.18957441,4505.4,4505.0,0.39951]
[1756340340307,20.824,4505.7,4505.1,1.5397]
[1756340340510,0.18965385,4505.6,4504.9,0.39952]
[1756340340807,0.72025385,4505.5,4504.9,0.5777]
[1756340341016,0.5306,4504.9,4504.3,0.5777]
[1756340341215,3.2078,4504.4,4504.1,1.22722804]
[1756340341409,14.97565385,4504.3,4504.2,0.5777]
[1756340341714,0.18965385,4504.3,4504.2,1.5727]
[1756340342011,0.18965385,4504.8,4504.2,0.995]
[1756340342313,0.96786,4504.6,4504.5,0.593]
[1756340342515,0.75795385,4504.6,4504.5,1.588]
[1756340342810,18.51865385,4504.6,4504.5,1.588]
[1756340343012,0.75795385,4504.6,4504.5,0.593]
[1756340343216,0.75795385,4504.6,4504.5,1.1909]
[1756340343914,0.77383529,4504.6,4504.5,1.1909]
[1756340344808,0.77393621,4504.6,4504.5,1.1909]
[1756340345008,0.77393621,4504.6,4504.5,0.593]
[1756340345516,0.41478,4504.3,4504.1,0.10212804]
[1756340345810,24.81693621,4504.2,4504.1,0.10212804]
[1756340346116,24.80273621,4504.2,4504.1,0.10212804]
[1756340346511,24.81793621,4504.2,4504.1,0.10212804]
[1756340346810,0.0152,4504.1,4503.2,0.593]
[1756340347015,0.474,4503.3,4503.2,0.593]
[1756340347214,21.50063621,4503.3,4503.2,0.593]
[1756340347911,0.0152,4503.2,4502.9,0.593]
[1756340348119,0.474,4503.0,4502.5,0.9901]
[1756340348413,0.474,4502.7,4502.2,4.3987]
[1756340348713,21.02363621,4502.6,4502.3,0.593]
[1756340348919,0.474,4502.4,4502.3,0.593]
[1756340349129,0.67963621,4502.4,4502.3,0.593]
[1756340349329,0.67963621,4502.4,4501.3,0.17598757]
[1756340349330,4.20563621,4502.4,4501.3,0.593]
[1756340349532,0.474,4501.8,4501.3,0.593]
[1756340349828,21.54263621,4501.7,4501.1,0.5979]
[1756340350023,0.20563621,4501.6,4501.1,1.1909]
[1756340350231,0.20563621,4501.5,4501.0,0.39987]